bitfinex/quotes_ETHUSD_20250422
["timestamp","ask_amount","ask_price","bid_price","bid_amount"]
[1745334986214,0.58117844,1720.7,1719.9,0.05813779]
[1745334986215,5.81171951,1720.7,1719.9,0.05813779]
[1745334986433,5.81188207,1720.7,1720.0,0.8207]
[1745334986731,5.81105807,1720.9,1720.1,0.05812872]
[1745334986938,5.81145131,1720.8,1720.1,0.05812872]
[1745334987137,5.81105807,1720.9,1720.1,0.05812872]
[1745334987299,5.81140759,1720.8,1720.1,0.05812872]
[1745334987498,16.96078058,1721.0,1720.2,0.8207]
[1745334987749,5.81136866,1720.8,1720.2,0.8207]
[1745334988034,5.81163161,1720.7,1720.2,0.8207]
[1745334988250,11.15,1721.0,1720.2,0.8207]
[1745334988408,5.81145391,1720.8,1720.2,0.8207]
[1745334988617,5.81240765,1720.5,1720.2,0.8207]
[1745334988943,5.81204601,1720.6,1720.2,0.8207]
[1745334989101,5.81175289,1720.7,1720.2,0.8207]
[1745334989305,16.96072328,1721.0,1720.2,0.8207]
[1745334989502,5.81180892,1720.7,1720.2,0.8207]
[1745334989707,11.15,1721.0,1720.2,0.8207]
[1745334990044,16.96073622,1721.0,1720.2,0.8207]
[1745334990350,5.81311003,1720.3,1719.5,0.8207]
[1745334990502,5.81335214,1720.2,1719.5,0.8207]
[1745334990702,5.81346506,1720.2,1719.5,0.8207]
[1745334990903,5.81373563,1720.1,1719.5,0.8207]
[1745334991102,11.62692351,1720.2,1719.5,0.8207]
[1745334991315,5.81334491,1720.2,1719.5,0.8207]
[1745334991531,11.62633647,1720.3,1719.5,0.8207]
[1745334991753,5.81363879,1720.1,1719.6,0.05814328]
[1745334991902,5.81298895,1720.3,1719.6,0.05814328]
[1745334992099,5.81125058,1720.8,1719.6,0.05814328]
[1745334992304,5.81176341,1720.7,1719.7,0.8207]
[1745334992607,11.15,1721.0,1719.9,0.8207]
[1745334992820,11.15,1721.0,1720.1,5.81329001]
[1745334993101,11.15,1721.0,1720.0,3.0581257]
[1745334993102,16.95895076,1721.5,1720.3,0.8207]
[1745334993303,5.80940572,1721.4,1720.5,0.8207]
[1745334993522,12.92820508,1721.5,1720.6,0.0581095]
[1745334993712,11.15,1721.5,1720.6,0.05810815]
[1745334993948,11.15,1721.5,1720.7,0.8207]
[1745334994111,11.15,1721.5,1720.8,0.05810679]
[1745334994447,11.15,1721.5,1720.8,0.058104]
[1745334994743,5.80881709,1721.6,1720.9,0.8207]
[1745334994905,5.80813055,1721.8,1720.9,0.8207]
[1745334995109,5.80665536,1722.2,1720.6,13.68110616]
[1745334995110,5.80619348,1722.3,1721.4,5.80903712]
[1745334995328,5.80450429,1722.8,1721.6,0.8207]
[1745334995540,5.80517821,1722.6,1721.6,0.8207]
[1745334995738,11.02735339,1722.9,1721.6,0.8207]
[1745334995739,5.80733621,1722.0,1721.6,0.8207]
[1745334995938,5.80745181,1722.0,1721.6,0.8207]
[1745334996150,5.80707402,1722.1,1721.6,0.8207]
[1745334996363,16.83177631,1722.9,1721.6,0.8207]
[1745334996512,5.8067081,1722.2,1721.6,0.8207]
[1745334996735,5.80668108,1722.2,1721.6,0.8207]
[1745334997039,5.80734671,1722.0,1721.6,0.8207]
[1745334997235,5.80711554,1722.1,1721.6,0.8207]
[1745334997434,5.807335,1722.0,1721.6,0.8207]
[1745334997679,5.80708176,1722.1,1721.6,0.8207]
[1745334997993,5.80720888,1722.0,1721.6,0.8207]
[1745334998191,5.80923792,1721.4,1721.2,0.7587]
[1745334998349,5.80821281,1721.7,1720.7,0.7587]
[1745334998674,5.81107112,1720.9,1720.7,0.7587]
[1745334999256,5.81125058,1720.8,1720.7,0.7587]
[1745334999453,5.81070023,1721.0,1720.1,0.43669553]
[1745334999772,5.81070023,1721.0,1719.6,19.83043581]
[1745334999773,5.81074158,1721.0,1720.2,0.7587]
[1745334999996,11.62161447,1721.0,1720.2,0.7587]
[1745335000156,5.81092864,1720.9,1720.2,0.7587]
[1745335000367,5.81092864,1720.9,1720.3,0.0581196]
[1745335000941,10.863,1721.8,1720.3,0.7587]
[1745335001169,0.32284371,1721.7,1720.5,0.7587]
[1745335001372,5.80917642,1721.5,1720.6,0.7587]
[1745335001575,0.58091764,1721.5,1720.6,0.7587]
[1745335001775,5.80943292,1721.4,1720.6,0.7587]
[1745335002088,5.80828321,1721.7,1720.6,0.7587]
[1745335002238,5.81038471,1721.1,1720.6,0.7587]
[1745335002680,5.80992091,1721.2,1720.6,0.7587]
[1745335002844,10.863,1721.2,1720.6,0.7587]
[1745335003172,0.42477537,1722.3,1720.6,1.19121912]
[1745335003173,10.862,1721.7,1720.6,1.19121912]
[1745335003366,5.80911259,1721.5,1720.7,0.89010333]
[1745335003561,5.80869559,1721.6,1720.8,0.832]
[1745335003562,5.80874041,1721.6,1720.8,0.832]
[1745335003743,5.8074269,1722.0,1721.0,6.64244387]
[1745335003945,5.80762638,1721.9,1721.2,0.832]
[1745335004404,5.80804245,1721.8,1721.2,0.832]
[1745335004702,19.161,1722.1,1721.3,0.05808723]
[1745335004901,5.80726906,1722.0,1721.4,0.832]
[1745335005047,5.80802671,1721.8,1721.4,0.832]
[1745335005249,5.80771287,1721.9,1721.4,0.832]
[1745335005472,5.80667641,1722.2,1721.4,0.832]
[1745335005680,0.58048412,1722.6,1721.6,0.832]
[1745335005845,5.80490564,1722.7,1721.7,0.05807207]
[1745335005846,5.80600614,1722.4,1721.7,0.05807207]
[1745335006045,5.80633388,1722.3,1721.8,0.832]
[1745335006488,5.80517821,1722.6,1721.8,0.832]
[1745335006794,27.69301329,1722.8,1721.0,3.0]
[1745335006795,5.80793148,1721.8,1721.0,0.832]
[1745335006950,5.80846733,1721.7,1721.0,1.2602594]
[1745335007281,5.80804511,1721.8,1721.0,1.2602594]
[1745335007459,5.80834188,1721.7,1721.0,1.2602594]
[1745335007657,5.80845506,1721.7,1721.0,1.2602594]
[1745335007849,5.80720134,1722.0,1721.0,0.832]
[1745335007850,5.80894279,1721.5,1721.0,0.832]
[1745335008044,5.81013194,1721.2,1721.0,0.832]
[1745335008249,5.81013194,1721.2,1719.9,16.84152346]
[1745335008250,5.81023763,1721.1,1720.1,0.832]
[1745335008476,5.80922504,1721.4,1720.5,0.832]
[1745335008674,11.6209898,1721.1,1720.5,0.832]
[1745335008850,5.81046365,1721.1,1720.5,0.832]
[1745335009059,5.81060322,1721.0,1720.5,0.832]
[1745335009572,5.81039157,1721.1,1720.5,0.832]
[1745335009771,16.5555305,1723.2,1720.8,11.02735339]
[1745335009970,5.80573193,1722.5,1720.9,4.10273534]
[1745335010175,5.80573193,1722.5,1721.5,5.80862538]
[1745335010372,10.861,1722.7,1721.3,3.0]
[1745335010574,5.80634727,1722.3,1721.3,8.80955398]
[1745335010752,5.8058761,1722.4,1721.3,8.8093223]
[1745335010953,11.61289977,1722.3,1721.4,1.25000933]
[1745335011148,5.80743416,1722.0,1721.4,1.19193223]
[1745335011354,5.80704055,1722.1,1721.5,0.05807818]
[1745335011694,5.80688055,1722.1,1721.4,0.311]
[1745335012072,5.80745141,1722.0,1721.4,0.311]
[1745335012257,5.80636944,1722.3,1721.4,0.311]
[1745335012465,5.80551523,1722.5,1721.4,0.311]
[1745335012665,5.80736799,1722.0,1721.4,0.311]
[1745335012913,0.58055152,1722.4,1721.4,0.311]
[1745335012914,5.80820189,1721.8,1721.4,0.311]
[1745335013119,0.58055152,1722.4,1721.0,0.3113]
[1745335013120,0.7522,1722.0,1721.0,0.3113]
[1745335013405,5.80890713,1721.5,1721.0,0.3113]
[1745335013709,5.8098836,1721.3,1721.0,0.3113]
[1745335013916,5.80997666,1721.2,1721.0,0.3113]
[1745335014062,11.61893963,1721.4,1721.0,0.3113]
[1745335014267,5.80971763,1721.3,1721.0,0.3113]
[1745335015006,5.80858733,1721.6,1721.0,0.3113]
[1745335015178,5.80984616,1721.3,1721.0,0.3113]
[1745335015378,5.80984616,1721.3,1720.3,0.3113]
[1745335015612,5.80984616,1721.3,1720.2,0.05810929]
[1745335015613,10.86,1721.5,1720.6,0.3113]
[1745335015805,10.86,1721.5,1720.8,6.12226462]
[1745335016017,24.96266194,1721.9,1721.0,6.12184807]
[1745335016212,10.86,1722.1,1721.0,6.12184807]
[1745335016213,16.66707351,1722.1,1721.2,0.3113]
[1745335016429,5.80732347,1722.0,1721.2,0.3113]
[1745335017023,5.80732347,1722.0,1721.3,0.05808323]
[1745335017224,5.8075399,1721.9,1721.3,0.05808323]
[1745335017425,5.80740549,1722.0,1721.3,0.36938324]
[1745335017649,16.66700401,1722.1,1721.3,0.36938324]
[1745335017998,5.80566525,1722.5,1721.5,3.3113]
[1745335018206,5.80542235,1722.6,1721.8,0.3113]
[1745335018435,12.51455305,1723.1,1721.8,0.3113]
[1745335018436,5.80680794,1722.2,1721.8,0.3113]
[1745335018606,5.80634434,1722.3,1721.8,0.3113]
[1745335018807,5.80604084,1722.4,1721.8,0.3113]
[1745335019011,5.80440652,1722.9,1721.8,5.80787547]
[1745335019209,5.80461847,1722.8,1721.9,3.89208755]
[1745335019519,5.80486296,1722.7,1721.9,3.89208755]
[1745335019751,5.80472556,1722.8,1721.9,3.58078755]
[1745335020056,5.80486263,1722.7,1722.0,0.3113]
[1745335020205,5.80487319,1722.7,1722.0,0.3113]
[1745335020405,5.80468057,1722.8,1722.0,1.14306723]
[1745335020714,5.80443381,1722.9,1722.0,0.70050876]
[1745335021041,5.80383052,1723.0,1722.0,0.70050876]
[1745335021207,5.80481101,1722.8,1722.1,0.05805531]
[1745335021537,5.80433369,1722.9,1722.1,0.05805531]
[1745335021756,5.804643,1722.8,1722.1,0.05805531]
[1745335022334,10.859,1723.1,1722.3,5.80618939]
[1745335022525,19.154,1723.4,1722.5,0.3113]
[1745335022707,5.8034937,1723.1,1722.0,0.38920876]
[1745335022907,5.80568367,1722.5,1722.1,0.3113]
[1745335023130,5.80568367,1722.5,1721.6,0.3113]
[1745335023131,11.61334629,1722.2,1721.6,0.3113]
[1745335023347,5.80501398,1722.7,1721.6,0.75242272]
[1745335023348,5.80484123,1722.7,1721.6,0.75242272]
[1745335023549,5.80484123,1722.7,1721.6,0.3113]
[1745335023861,5.80610604,1722.4,1721.7,0.05807178]
[1745335024036,5.80596381,1722.4,1721.7,0.05807178]
[1745335024357,5.80498602,1722.7,1721.8,6.11899038]
[1745335024564,5.80504089,1722.7,1722.0,0.3113]
[1745335024724,5.80504089,1722.7,1722.1,0.05806234]
[1745335024925,5.80396496,1723.0,1722.2,0.3113]
[1745335025324,5.80434303,1722.9,1722.2,0.3113]
[1745335025520,10.856,1723.3,1722.7,0.3113]
[1745335025833,5.80316994,1723.2,1722.7,0.3113]
[1745335026041,1.03391527,1723.6,1722.8,5.86242199]
[1745335026362,0.7310371,1723.6,1723.0,0.3113]
[1745335026559,0.7310371,1723.6,1723.1,5.80335737]
[1745335026791,0.7310371,1723.6,1723.2,0.3113]
[1745335026939,0.7310371,1723.6,1723.4,0.3113]
[1745335027541,0.7310371,1723.6,1723.4,3.0]
[1745335027542,0.4197371,1723.6,1723.4,3.0]
[1745335027738,5.79880094,1724.5,1723.6,3.0]
[1745335028050,5.79880094,1724.5,1723.5,6.65191603]
[1745335028051,5.79925118,1724.4,1723.5,0.3]
[1745335028252,5.79908772,1724.5,1723.6,7.85773044]
[1745335028575,5.7977765,1724.8,1723.7,3.0]
[1745335028779,1.32266502,1725.0,1723.7,3.0]
[1745335028780,1.32266502,1725.0,1723.7,8.80123714]
[1745335028987,5.79763295,1724.9,1723.9,13.65834238]
[1745335029153,5.79763295,1724.9,1724.0,3.05798788]
[1745335029496,1.02,1725.0,1724.3,3.0]
[1745335029635,1.02,1725.0,1724.4,0.05798467]
[1745335029976,1.02,1725.0,1724.1,3.0]
[1745335030137,1.02,1725.0,1724.2,0.057986]
[1745335030339,1.02,1725.0,1723.4,13.66010474]
[1745335030340,5.79743753,1724.9,1723.4,13.66010474]
[1745335030537,7.85773044,1724.8,1723.1,7.85773044]
[1745335030789,5.79994205,1724.2,1723.1,13.66099167]
[1745335031082,6.58010981,1724.7,1722.8,5.80448402]
[1745335031083,10.834,1724.4,1722.8,7.85773044]
[1745335031262,10.834,1724.4,1722.7,13.66239117]
[1745335031263,5.8001276,1724.1,1722.7,13.66239117]
[1745335031463,5.80043181,1724.1,1722.6,0.43518281]
[1745335031663,5.80199659,1723.6,1722.4,0.3552016]
[1745335031842,5.80223065,1723.5,1722.5,11.61062689]
[1745335032039,6.38230133,1723.6,1722.6,0.05803676]
[1745335032365,5.80168147,1723.7,1722.7,5.80481438]
[1745335032673,0.782,1724.2,1723.1,5.80334738]
[1745335032974,29.972,1724.3,1723.1,0.42535456]
[1745335033180,5.8006161,1724.0,1723.1,0.92290197]
[1745335033341,5.8001276,1724.1,1723.1,0.92290197]
[1745335033544,5.80220158,1723.5,1722.5,16.63933503]
[1745335033744,5.80369352,1723.1,1722.3,0.42792034]
[1745335034049,5.80384159,1723.0,1722.0,5.80704248]
[1745335034379,5.80384159,1723.0,1722.0,6.24269088]
[1745335034590,5.80384159,1723.0,1722.0,0.4356484]
[1745335034799,5.80469813,1722.8,1722.0,1.35994917]
[1745335035089,16.63816739,1722.9,1721.5,16.64272993]
[1745335035291,5.80544968,1722.6,1721.7,0.44472893]
[1745335035458,5.80517821,1722.6,1721.3,11.00943947]
[1745335035655,5.80674637,1722.2,1721.2,5.80970765]
[1745335035850,5.80491884,1722.7,1721.4,5.80909214]
[1745335035851,5.80604979,1722.4,1721.4,5.80909214]
[1745335036179,0.782,1722.8,1721.5,5.80882666]
[1745335036379,0.782,1722.8,1721.4,5.80901603]
[1745335036550,5.80640327,1722.3,1721.3,6.39038968]
[1745335036876,5.80590309,1722.4,1721.5,3.0]
[1745335037059,5.80593131,1722.4,1721.6,0.35807307]
[1745335037259,5.80484123,1722.7,1721.3,6.3903185]
[1745335037472,5.80606398,1722.4,1721.5,3.0]
[1745335037680,6.58655125,1722.8,1721.3,6.39040383]
[1745335037681,5.80620836,1722.3,1721.6,0.05806882]
[1745335037994,0.782,1722.8,1721.4,0.05807221]
[1745335038178,0.782,1722.8,1721.4,0.0580776]
[1745335038345,5.8070146,1722.1,1721.3,0.58097077]
[1745335038679,5.80676604,1722.2,1721.4,0.05808011]
[1745335038879,5.80779711,1721.9,1721.1,0.43534427]
[1745335039049,5.80779711,1721.9,1720.9,5.8107528]
[1745335039246,5.80686371,1722.1,1720.7,11.00943947]
[1745335039445,5.80915738,1721.5,1720.6,19.5053693]
[1745335039780,5.80686371,1722.1,1720.7,2.00863487]
[1745335039977,5.80846161,1721.7,1720.6,5.81166884]
[1745335040183,5.80767067,1721.9,1720.9,5.8107618]
[1745335040379,5.80838098,1721.7,1720.8,3.0]
[1745335040579,5.80803536,1721.8,1720.8,8.81108568]
[1745335040884,0.782,1722.2,1720.4,11.44052588]
[1745335041084,5.80787547,1721.8,1720.5,1.14405259]
[1745335041381,5.80944652,1721.4,1720.6,0.05810714]
[1745335041680,10.836,1721.7,1720.6,0.05810714]
[1745335041879,5.80704221,1722.1,1720.8,5.8110464]
[1745335041880,5.80805503,1721.8,1720.8,5.8110464]
[1745335042180,5.8077118,1721.9,1720.9,5.81070615]
[1745335042381,5.80720092,1722.0,1720.8,8.81111643]
[1745335042549,17.42660336,1722.2,1720.9,0.88111164]
[1745335042878,5.80842186,1721.7,1720.8,3.0]
[1745335043079,11.62,1722.2,1721.0,0.55]
[1745335043286,5.8056679,1722.5,1721.6,3.0]
[1745335043447,5.80517821,1722.6,1721.6,0.05806968]
[1745335043651,5.80750121,1722.0,1721.1,3.0]
[1745335043888,5.80750121,1722.0,1721.2,0.3]
[1745335044071,5.80705721,1722.1,1721.3,0.0580892]
[1745335044249,5.80743599,1722.0,1721.3,0.0580892]
[1745335044451,5.80743599,1722.0,1721.2,0.74465714]
[1745335044651,19.145,1722.5,1721.2,0.74465714]
[1745335044880,24.95063753,1722.5,1721.5,3.0]
[1745335045086,5.80563753,1722.5,1721.7,3.0]
[1745335045286,17.4248963,1722.7,1721.6,0.3]
[1745335045586,17.42488258,1722.7,1721.4,3.0]
[1745335045884,5.80577987,1722.5,1721.6,3.0]
[1745335046085,5.80577987,1722.5,1721.6,8.80844991]
[1745335046291,5.80538039,1722.6,1721.6,8.80837166]
[1745335046466,5.80538039,1722.6,1721.7,8.80820315]
[1745335046659,5.80534175,1722.6,1721.8,3.88082032]
[1745335046847,5.80553151,1722.5,1721.8,0.88082032]
[1745335047053,5.80534175,1722.6,1721.6,3.0]
[1745335047252,5.80544125,1722.6,1721.6,14.61663492]
[1745335047452,5.80544125,1722.6,1721.8,3.0]
[1745335047693,5.80503544,1722.7,1721.9,0.05806471]
[1745335047859,5.80468163,1722.8,1721.9,0.05806471]
[1745335048063,5.80290331,1723.3,1722.1,0.55]
[1745335048266,5.80184638,1723.6,1722.4,5.80579493]
[1745335048484,0.005,1723.7,1722.2,0.60805324]
[1745335048485,5.80350445,1723.1,1722.2,5.80638937]
[1745335048801,5.80430689,1722.9,1722.1,0.43911454]
[1745335048964,5.80430689,1722.9,1722.1,3.43911454]
[1745335049173,5.80430689,1722.9,1722.1,4.4448554]
[1745335049356,5.80398045,1723.0,1722.1,3.0]
[1745335049667,5.80398045,1723.0,1722.1,3.44076714]
[1745335049863,5.80430847,1722.9,1722.1,0.44076714]
[1745335050050,5.80503579,1722.7,1721.9,0.88657919]
[1745335050253,5.80385946,1723.0,1722.0,5.86507153]
[1745335050254,5.80412956,1723.0,1722.0,5.86507153]
[1745335050455,5.80453029,1722.8,1721.9,8.80735635]
[1745335050697,5.80428742,1722.9,1721.9,9.24668833]
[1745335050899,5.8045117,1722.8,1721.9,3.43933198]
[1745335051054,5.8045117,1722.8,1721.9,0.43933198]
[1745335051254,5.8045117,1722.8,1722.0,0.05806105]
[1745335051691,11.60879702,1722.9,1722.0,3.05806105]
[1745335051898,5.80473438,1722.8,1722.0,0.05806105]
[1745335052094,5.80437514,1722.9,1722.0,3.05806105]
[1745335052297,5.8036352,1723.1,1722.1,3.0]
[1745335052597,10.839,1723.3,1722.3,6.35615738]
[1745335052895,5.80304679,1723.3,1722.5,3.0]
[1745335053099,5.80265264,1723.4,1722.5,3.0]
[1745335053311,5.80299328,1723.3,1722.5,3.0]
[1745335053614,5.80366168,1723.1,1722.3,3.0]
[1745335053772,5.80366168,1723.1,1722.4,0.3]
[1745335054114,5.80417697,1722.9,1722.2,11.138]
[1745335054322,5.80464224,1722.8,1722.2,0.3]
[1745335054516,5.80543422,1722.6,1721.9,0.42580672]
[1745335054806,5.8034937,1723.1,1722.0,0.05806565]
[1745335054807,5.80487212,1722.7,1722.0,0.05806565]
[1745335055023,5.80407278,1723.0,1721.7,7.85000532]
[1745335055313,5.80494593,1722.7,1721.8,5.8659196]
[1745335055515,5.80466225,1722.8,1721.9,5.80740199]
[1745335055686,5.80502895,1722.7,1722.0,0.63880005]
[1745335056008,5.80502895,1722.7,1722.0,0.05805985]
[1745335056202,5.80473227,1722.8,1722.0,0.05805985]
[1745335056781,5.80484548,1722.7,1722.0,0.05805985]
[1745335056980,5.80471374,1722.8,1722.0,0.05805985]
[1745335057298,29.978,1723.2,1722.1,3.0]
[1745335057486,5.80387689,1723.0,1722.2,0.3]
[1745335057805,5.80515819,1722.7,1721.9,0.4436082]
[1745335058017,5.80499619,1722.7,1721.8,5.80784073]
[1745335058311,5.80441554,1722.9,1722.0,8.80711107]
[1745335058626,5.8037557,1723.1,1722.1,0.05805456]
[1745335058820,5.80393527,1723.0,1722.1,8.86478193]
[1745335059112,29.978,1723.2,1722.2,0.88647819]
[1745335059273,5.80397822,1723.0,1722.1,3.0]
[1745335059475,5.80397822,1723.0,1722.1,8.80669312]
[1745335059670,11.60806764,1723.0,1722.1,8.80669312]
[1745335059874,5.80397822,1723.0,1722.1,8.86474703]
[1745335060415,5.80397822,1723.0,1722.1,14.6714134]
[1745335060627,5.80397926,1723.0,1722.2,1.46714134]
[1745335060834,5.80397926,1723.0,1722.3,0.5807]
[1745335060990,0.005,1723.7,1722.3,0.05805256]
[1745335061214,10.829,1723.7,1722.3,7.85000532]
[1745335061515,5.80341723,1723.2,1722.5,3.0]
[1745335061826,1.0829,1723.6,1722.5,3.0]
[1745335061827,5.80301993,1723.3,1722.5,3.0]
[1745335062139,1.0829,1723.6,1722.5,3.0]
[1745335062420,1.0829,1723.6,1722.6,0.05804543]
[1745335062421,5.80283144,1723.3,1722.6,0.05804543]
[1745335062621,5.80312301,1723.3,1722.5,3.05804542]
[1745335062787,5.80312301,1723.3,1722.6,0.30580454]
[1745335062988,5.80312187,1723.3,1722.6,0.30580454]
[1745335063188,5.80310077,1723.3,1722.7,0.05804206]
[1745335063390,10.829,1723.7,1722.7,0.05803977]
[1745335063586,10.829,1723.7,1722.6,0.30580454]
[1745335063587,5.80299477,1723.3,1722.6,0.30580454]
[1745335063814,5.80283312,1723.3,1722.6,0.30580454]
[1745335064018,5.80331986,1723.2,1722.6,0.30580454]
[1745335064219,11.60680954,1723.2,1722.6,0.30580454]
[1745335064487,5.80331986,1723.2,1722.4,3.78500053]
[1745335064695,5.80214679,1723.5,1722.4,0.78500053]
[1745335064893,5.80394106,1723.0,1722.2,10.823]
[1745335065211,5.80189667,1723.6,1722.4,5.80564751]
[1745335065415,11.60616815,1723.3,1722.4,5.80564751]
[1745335065622,5.80316027,1723.2,1722.3,6.44484455]
[1745335065818,5.8036244,1723.1,1722.3,3.5807]
[1745335066130,5.80423286,1722.9,1722.4,0.35807]
[1745335066336,5.80385959,1723.0,1722.4,0.35807]
[1745335066505,5.80385959,1723.0,1722.2,10.823]
[1745335066711,5.80442278,1722.9,1722.2,11.31535204]
[1745335067017,0.7549,1723.2,1722.2,0.43429882]
[1745335067018,5.80460084,1722.8,1722.2,0.43429882]
[1745335067221,5.80383052,1723.0,1721.6,5.80827223]
[1745335067397,5.80494109,1722.7,1721.5,14.23946653]
[1745335067594,5.80653056,1722.2,1721.6,1.42394665]
[1745335067798,10.822,1722.5,1721.5,0.42738794]
[1745335068010,5.80616712,1722.4,1721.6,0.05807877]
[1745335068210,16.62756547,1722.5,1721.6,5.86660495]
[1745335068410,16.62756547,1722.5,1721.6,0.05807877]
[1745335068617,5.80595819,1722.4,1721.6,0.05807877]
[1745335068811,5.80595819,1722.4,1721.6,0.70283365]
[1745335069029,16.62772676,1722.5,1721.6,9.51137871]
[1745335069230,5.80589519,1722.4,1721.6,3.70283365]
[1745335069733,5.80635403,1722.3,1721.6,0.70283365]
[1745335069923,5.80653258,1722.2,1721.5,0.49315775]
[1745335070124,5.80653258,1722.2,1721.5,0.05807657]
[1745335070437,5.80631067,1722.3,1721.5,0.05807657]
[1745335070748,5.80668076,1722.2,1721.5,0.05807657]
[1745335070902,5.80631067,1722.3,1721.4,3.0]
[1745335070903,5.8062924,1722.3,1721.4,3.0]
[1745335071102,5.80586714,1722.4,1721.5,0.35807486]
[1745335071325,5.80586714,1722.4,1721.5,6.16681981]
[1745335071538,10.822,1722.5,1721.5,0.73608087]
[1745335071729,5.80669956,1722.2,1721.5,0.43608087]
[1745335072036,5.80669956,1722.2,1721.5,0.05807926]
[1745335072254,5.80638506,1722.3,1721.4,8.80922391]
[1745335072542,5.80701064,1722.1,1721.4,0.42825953]
[1745335072706,5.80701064,1722.1,1721.2,6.10988547]
[1745335073039,5.80628466,1722.3,1721.3,3.61098855]
[1745335073204,5.80738303,1722.0,1721.3,0.61098855]
[1745335073403,5.80738303,1722.0,1721.2,3.3]
[1745335073706,5.80768471,1721.9,1721.2,0.3]
[1745335073909,5.80768471,1721.9,1721.1,3.0]
[1745335074153,5.80809285,1721.8,1721.1,3.36391804]
[1745335074465,5.80809285,1721.8,1720.9,10.822]
[1745335074762,0.7549,1722.0,1720.9,0.43665336]
[1745335074967,5.80968675,1721.3,1720.3,13.66275082]
[1745335075138,5.80968675,1721.3,1720.4,1.36627508]
[1745335075306,5.81001349,1721.2,1720.4,1.36627508]
[1745335075502,5.80922504,1721.4,1720.4,1.36627508]
[1745335075741,11.62234917,1720.9,1720.0,13.66392561]
[1745335075926,10.826,1721.2,1720.1,3.05812069]
[1745335076245,10.826,1721.2,1719.3,0.61401758]
[1745335076246,5.81211285,1720.6,1719.7,5.81472409]
[1745335076407,5.81177454,1720.7,1719.8,0.0581346]
[1745335076611,0.8319,1721.1,1719.8,0.0581346]
[1745335076612,5.81147115,1720.8,1719.9,8.81428793]
[1745335076911,5.81106909,1720.9,1720.0,0.88142879]
[1745335077132,5.8103374,1721.1,1720.2,5.8131317]
[1745335077332,11.62148337,1721.0,1720.2,3.0]
[1745335077508,5.81059498,1721.0,1720.1,3.0]
[1745335077716,35.78194804,1721.2,1720.0,0.88142879]
[1745335077911,5.81185901,1720.7,1720.0,0.88142879]
[1745335078108,5.81219572,1720.6,1719.7,6.25762624]
[1745335078308,8.62270532,1720.9,1719.8,0.05813329]
[1745335078509,8.62270532,1720.9,1719.6,0.05813933]
[1745335078510,5.8115883,1720.7,1719.6,0.05813933]
[1745335078714,5.81261614,1720.4,1719.6,3.05813933]
[1745335078913,16.64111913,1720.6,1719.6,0.49746458]
[1745335079139,16.64122254,1720.6,1719.6,6.31255223]
[1745335079468,10.829,1720.6,1719.7,0.63125522]
[1745335079611,16.64108205,1720.6,1719.8,0.05813401]
[1745335080153,10.829,1720.6,1719.8,0.0581337]
[1745335080315,16.64103674,1720.6,1719.7,9.44595329]
[1745335080515,16.64103674,1720.6,1719.8,0.94459533]
[1745335080710,10.829,1720.6,1719.8,0.94459533]
[1745335080946,16.64120523,1720.6,1719.9,0.05813408]
[1745335081252,5.81311193,1720.3,1719.7,0.63125522]
[1745335081411,10.829,1720.6,1719.8,0.05814286]
[1745335081615,5.81240144,1720.5,1719.7,0.05813611]
[1745335081841,10.829,1720.6,1719.4,7.85000532]
[1745335082048,10.829,1720.6,1719.5,8.87374171]
[1745335082207,16.64112365,1720.6,1719.7,3.0]
[1745335082407,22.45330713,1720.6,1719.8,0.35813736]
[1745335082607,5.81260471,1720.4,1719.8,0.3]
[1745335082821,5.81246302,1720.5,1719.8,0.3]
[1745335083042,10.829,1720.6,1719.6,3.0]
[1745335083043,10.829,1720.6,1719.6,0.44367802]
[1745335083247,5.81372194,1720.1,1719.5,0.05814047]
[1745335083555,11.62775141,1720.1,1719.9,0.5]
[1745335083732,5.81346355,1720.2,1719.9,0.5]
[1745335083930,5.81374322,1720.1,1719.9,0.5]
[1745335084244,5.81310733,1720.3,1719.9,0.5]
[1745335084549,6.58544835,1720.4,1719.9,0.5]
[1745335084550,5.8128192,1720.4,1719.9,0.5]
[1745335084749,5.81305604,1720.3,1719.9,0.5]
[1745335084955,5.81281644,1720.4,1719.9,0.5]
[1745335085165,5.81332824,1720.2,1719.9,0.5]
[1745335085643,5.81363397,1720.1,1719.9,0.5]
[1745335085848,5.81395348,1720.0,1719.9,0.5]
[1745335086320,5.8146296,1719.8,1718.8,0.34291952]
[1745335086526,0.7727,1719.1,1718.4,0.4090371]
[1745335086879,5.81848586,1718.7,1718.4,0.4090371]
[1745335087052,5.81884968,1718.6,1718.4,0.4090371]
[1745335087438,5.81902822,1718.5,1718.4,0.4090371]
[1745335087622,6.59172822,1718.5,1718.4,0.4090371]
[1745335088024,5.81870384,1718.6,1718.4,0.4090371]
[1745335088253,5.81902822,1718.5,1718.4,0.4090371]
[1745335088459,5.8186957,1718.6,1718.4,0.4090371]
[1745335088761,7.48176457,1718.6,1718.4,0.4090371]
[1745335089052,5.81902822,1718.5,1718.4,0.4090371]
[1745335089368,5.81936685,1718.4,1717.5,0.49346809]
[1745335089568,7.48177045,1718.6,1717.5,6.25754031]
[1745335089772,6.56736365,1718.5,1717.5,6.25754031]
[1745335089923,0.74817705,1718.5,1717.5,6.25741216]
[1745335090125,5.81940208,1718.4,1717.5,0.43526415]
[1745335090341,6.56748216,1718.5,1717.5,5.82224275]
[1745335090664,5.81938096,1718.4,1717.6,3.0]
[1745335090985,5.81986405,1718.3,1717.6,0.05820665]
[1745335091193,6.47631387,1718.4,1717.5,3.0]
[1745335091395,6.47624766,1718.4,1717.4,5.82254339]
[1745335091560,6.47624766,1718.4,1717.5,3.0]
[1745335091889,0.64762477,1718.3,1717.5,3.0]
[1745335092056,5.81940698,1718.4,1717.5,3.0]
[1745335092257,5.82051045,1718.1,1717.4,0.42812225]
[1745335092599,5.82073627,1718.0,1717.2,10.834]
[1745335093091,5.82112843,1717.9,1717.2,11.27141642]
[1745335093293,6.62298757,1718.2,1717.2,17.09471056]
[1745335093495,5.81952665,1718.4,1717.4,5.82261132]
[1745335093698,5.81952665,1718.4,1717.3,5.31769203]
[1745335093699,0.74817705,1718.5,1717.5,0.05820828]
[1745335093989,5.81870186,1718.6,1717.6,0.55]
[1745335094189,5.81870186,1718.6,1717.7,3.0]
[1745335094436,5.81872652,1718.6,1717.8,0.05820121]
[1745335094558,5.81889795,1718.6,1717.8,0.05819985]
[1745335094897,5.81972747,1718.3,1717.5,0.55]